{"text_format":"1","workbook":"xlsx","n_sheets":3,"sheets":["Wstęp","Rekompensata","Rozsądny zysk"],"not_rendered":{"charts":0,"images":0,"macros":1,"external_links":0,"defined_names":4,"comments":0,"pivot_tables":0},"unopened":[],"bounds":{"document_bytes":16777216,"sheet_cells":100000,"rows_first":2000,"rows_last":500,"rows_between":2000,"halvings":0,"cell_chars":16384,"cell_head_chars":4096},"cells_cut":0,"cells_raw":0,"read":"whole","date_system":"1900"}

{"sheet":"Wstęp","index":0,"n_rows":1,"n_cols":2,"rows_kept":1,"cut":false,"hidden":false,"merged":[]}
[null,"Model bazuje na danych i informacjach otrzymanych od Zlecającego oraz uzyskanych ze źródeł publicznych, jeżeli źródła te mogą być racjonalnie uznane za wiarygodne. Zakładamy, że zarówno wszelkie otrzymane dane dotyczące projektu unijnego, jak również informacje dotyczące historycznych kosztów i przychodów są aktualne na moment przygotowywania Modelu, dokładne, kompletne i rzetelne. Nie jesteśmy zobowiązani do weryfikacji jakichkolwiek informacji lub dokumentów otrzymanych od Zlecającego, w tym informacji dotyczących kosztów i przychodów, udzielonych pożyczek oraz inwestycji zrealizowanych, jak również planowanych do realizacji. \n\nZlecający potwierdza, że Model poprawnie odzwierciedla przekazane przez Zlecającego dane, założenia i najlepszą wiedzę Zlecającego. \n\nZlecający rozumie, że zmiana jakiegokolwiek założenia, wartości lub odwołania może spowodować zmianę rezultatów Modelu. \n\nPrognozy finansowe otrzymane od Zlecającego i założenia zawarte w Modelu nie stanowią zapewnienia osiągnięcia zakładanych w prognozach finansowych wyników finansowych.\n\nModel musi być prezentowany w całości i jest przygotowany jedynie w celach opisanych w umowie między Zlecającym a Zleceniobiorcą. Model nie może być rozpowszechniany wśród osób trzecich bez pisemnej zgody Zleceniobiorcy.\n"]

{"sheet":"Rekompensata","index":1,"n_rows":17,"n_cols":24,"rows_kept":17,"cut":false,"hidden":false,"merged":[]}
[]
["KALKULACJA REKOMPENSATY",null,null,null,2013,{"$f":"E2+1","v":2014},{"$f":"F2+1","v":2015},2016,2017,2018,2019,2020,2021,2022,2023,2024,2025,2026,2027,2028,2029,2030,2031,2032]
[null,"Jednostka"]
[]
["Koszty operacyjne (w tym koszty instalacji zastępczej)","PLN"]
["Pozostałe koszty operacyjne","PLN"]
["Pozostałe przychody operacyjne","PLN"]
["Przychody finansowe","PLN"]
["Otrzymane przysporzenia (np. dokapitalizowanie)","PLN"]
["Koszty finansowe","PLN"]
["Podatek dochodowy","PLN"]
[]
["Należna rekompensata bez rozsądnego zysku","PLN",null,null,{"$f":"E5+E6-E7-E8-E9+E10+E11","v":0},{"$f":"F5+F6-F7-F8-F9+F10+F11","v":0},0,0,0,0,0,0,0]
[]
["Wypłacone wynagrodzenie (w tym wynagrodzenie z instalacji zastępczej)"]
[]
["Różnica (wypłacone wynagrodzenie – należna rekompensata bez rozsądnego zysku)",null,null,null,{"$f":"E15-E13","v":0},{"$f":"F15-F13","v":0},{"$f":"G15-G13","v":0},0,0,0,0,0,0]

{"sheet":"Rozsądny zysk","index":2,"n_rows":37,"n_cols":24,"rows_kept":37,"cut":false,"hidden":false,"merged":[]}
[]
["KALKULACJA ROZSĄDNEGO ZYSKU",null,null,null,2013,{"$f":"E2+1","v":2014},{"$f":"F2+1","v":2015},2016,2017,2018,2019,2020,2021,2022,2023,2024,2025,2026,2027,2028,2029,2030,2031,2032]
[null,"Jednostka"]
[]
["WPŁYWY","PLN",0,null,0,0,0,0,0,0,0,0,0,0,0,0,0,0,0,0,0,0,0,0]
["Przychody z działalności operacyjnej","PLN",0,null,0,0,0,0,0,0,0,0,0,0,0,0,0,0,0,0,0,0,0,0]
["Pozostałe przychody operacyjne","PLN",0,null,null,0,0,0,0,0,0,0,0,0,0,0,0,0,0,0,0,0,0,0]
["Przychody finansowe","PLN",0,null,null,0,0,0,0,0,0,0,0,0,0,0,0,0,0,0,0,0,0,0]
["Dokapitalizowanie","PLN",0,null,null,0,0,0,0,0,0,0,0,0,0,0,0,0,0,0,0,0,0,0]
["Pożyczka od Miasta","PLN",null,null,0,0,0,0,0,0,0,0,0,0,0,0,0,0,0,0,0,0,0,0]
["Wartość rezydualna – wkład majątkowy operatora","PLN",{"$f":"SUM(E11:X11)","v":0},null,null,null,null,null,null,null,null,null,null,null,null,null,null,null,null,null,null,null,null,0]
["Wartość rezydualna – projekt UE","PLN",0,null,null,null,null,null,null,null,null,null,null,null,null,null,null,null,null,null,null,null,null,0]
["Wartość rezydualna – pozostałe inwestycje","PLN",0,null,null,null,null,null,null,null,null,null,null,null,null,null,null,null,null,null,null,null,null,0]
[]
[]
["WYPŁYWY","PLN",0,null,0,0,0,0,0,0,0,0,0,0,0,0,0,0,0,0,0,0,0,0]
["Koszty operacyjne bez amortyzacji","PLN",0,null,0,0,0,0,0,0,0,0,0,0,0,0,0,0,0,0,0,0,0,0]
["Pozostałe koszty operacyjne","PLN",0,null,0,0,null,0,0,0,0,0,0,0,0,0,0,0,0,0,0,0,0,0]
["Koszty finansowe","PLN",0,null,0,0,null,0,0,0,0,0,0,0,0,0,0,0,0,0,0,0,0,0]
["Podatek dochodowy","PLN",0,null,0,0,null,0,0,0,0,0,0,0,0,0,0,0,0,0,0,0,0,0]
["Wkład własny – projekt UE","PLN",null,null,0,0,null,0,0,0,0,0,0,0,0,0,0,0,0,0,0,0,0,0]
["Wkład majątkowy operatora służący działalności powierzonej","PLN",{"$f":"SUM(E22:X22)","v":0},null,0,0,null,0,0,0,0,0,0,0,0,0,0,0,0,0,0,0,0,0]
["Wkład własny – pozostałe inwestycje","PLN",0,null,null,null,null,0,0,0,0,0,0,0,0,0,0,0,0,0,0,0,0,0]
["Nakłady odtworzeniowe – projekt UE","PLN",0,null,null,null,null,0,0,0,0,0,0,0,0,0,0,0,0,0,0,0,0,0]
["Nakłady odtworzeniowe – pozostałe inwestycje","PLN",0,null,null,null,null,0,0,0,0,0,0,0,0,0,0,0,0,0,0,0,0,0]
["Spłata pożyczek","PLN",0,null,0,0,null,0,0,0,0,0,0,0,0,0,0,0,0,0,0,0,0,0]
[]
[]
["PRZEPŁYWY NETTO","PLN",0,null,{"$f":"E5-E16","v":0},0,null,0,0,0,0,0,0,0,0,0,0,0,0,0,0,0,0,0]
[]
[]
["WERYFIKACJA ROZSĄDNEGO ZYSKU"]
[]
["Maksymalna wartość rozsądnego zysku zgodnie z umową wykonawczą","%",5.16E-2]
["Prognozowana wartość rozsądnego zysku","%",0,1]
[]
[{"$f":"IF(C35<=C34,\"REKOMPENSATA NIE JEST NADMIERNA\",\"REKOMPENSATA JEST NADMIERNA\")","v":"REKOMPENSATA NIE JEST NADMIERNA"}]